Cogmind - Beta 16 @@@ ROGUE MODE // 2026.01.12 @ 01:52:11 Player: mm79 Result: Destroyed by S-10 Pest with Light Assault Rifle Performance ------------- Evolutions (0) 0 Regions Visited (1) 200 Robots Destroyed (25) 125 Value Destroyed (481) 481 Prototype IDs (4) 80 Alien Tech Used (0) 0 Bonus (0) 0 TOTAL SCORE: 886 Bonus ------- None Cogmind --------- Core Integrity 0/250 Matter 290/300 Energy 105/125 System Corruption 2% Temperature Cool (0) Movement Rolling (95) Ox1 Location -10/Materials Parts ------- > --- POWER (1) -------- Light Ion Engine > --- PROPULSION (2) --- Wheel Wheel > --- UTILITY (2) ------ Heat Sink Large Storage Unit > --- WEAPON (2) ------- Medium Laser Medium Laser > --- INVENTORY (15) --- Subdweller Power Source Wheel Subdweller Monowheel Structural Scanner Visual Processing Unit Subdweller Optics Improved Terrain Scanner Seismic Detector Seismic Detector Medium Laser Medium Laser Medium Laser Battle Rifle Mining Laser Peak State ------------ > --- POWER ------------ Light Ion Engine > --- PROPULSION ------- Wheel Wheel > --- UTILITY ---------- Heat Sink Large Storage Unit > --- WEAPON ----------- Medium Laser Medium Laser > --- INVENTORY -------- Subdweller Power Source Wheel Wheel Subdweller Monowheel Structural Scanner Visual Processing Unit Subdweller Optics Improved Terrain Scanner Seismic Detector Seismic Detector Medium Laser Medium Laser Medium Laser Medium Laser Mining Laser [Rating: 9] Favorites ----------- Power Light Ion Engine Engine Light Ion Engine Propulsion Wheel Wheel Wheel Utility Large Storage Unit Device Seismic Detector Storage Large Storage Unit Weapon Medium Laser Energy Gun Medium Laser Build | -11 -10 ------- Run | Yrd Mat Slots Evolved . | . . Power . | . . Propulsion . | . . Utility . | . . Weapon . | . . Parts Attached 16 | 7 9 Power 2 | 1 1 Engine 2 | 1 1 Core . | . . Reactor . | . . Propulsion 4 | 2 2 Treads . | . . Leg . | . . Wheel 4 | 2 2 Hover . | . . Flight . | . . Utility 4 | 2 2 Device 2 | 1 1 Storage 2 | 1 1 Processor . | . . Hackware . | . . Protection . | . . Artifact . | . . Weapon 6 | 2 4 Energy Gun 6 | 2 4 Energy Cannon . | . . Ballistic Gun . | . . Ballistic Cannon . | . . Launcher . | . . Special Weapon . | . . Impact Weapon . | . . Slashing Weapon . | . . Piercing Weapon . | . . Special Melee Weapon . | . . Unidentified Prototypes . | . . Parts Lost 2 | . 2 Power 1 | . 1 Propulsion . | . . Utility . | . . Weapon 1 | . 1 Highest Loss Streak 1 | . 1 To Critical Strikes . | . . Average Backups 12 | 2 13 Power . | . . Propulsion 3 | 1 3 Utility 4 | . 4 Weapon 4 | . 4 Tool/Special . | . . Unused Backups 16 | 1 15 Power 1 | . 1 Propulsion 3 | . 3 Utility 6 | 1 5 Weapon 6 | . 6 Tool/Special . | . . Average Slot Usage (%) 99 | . 99 Engine 13 | . 13 Wheel 28 | . 28 Device 14 | . 14 Storage 14 | . 14 Energy Gun 28 | . 28 Peak Build Rating 9 | 8 9 Average Rating 7 | 5 8 On Entrance 4 | . 8 Avg Prop Armor Cover (%) . | . . Naked Turns . | . . Heaviest Build 28 | 11 28 Greatest Support 20 | 20 20 Greatest Overweight (x) 1 | . 1 Average Overweight (x) . | . . Largest Inventory Capacity 15 | 8 15 Average Capacity 14 | 7 14 Most Carried 15 | 8 15 Average Carried 12 | 2 13 Final Capacity 15 | 8 15 Final Carried 14 | 8 14 Class Distribution -------------------- 100% | Mutant Dominant Class ---------------- Mutant | -10/Materials Resources | -11 -10 ----------- Run | Yrd Mat Matter Collected 353 | 255 98 Remotely . | . . Salvage Created 691 | 51 640 Parts 45 | 11 34 Haulers Intercepted 2 | . 2 Recyclers Shooed 1 | 1 . Parts Field Recycled . | . . Retrieved Matter . | . . Parts Self-Destructed . | . . Prevented . | . . Parts Restored . | . . Kills | -11 -10 ------- Run | Yrd Mat Combat Hostiles Destroyed 15 | . 15 Guns 15 | . 15 Classes Destroyed 7 | 1 6 Tunneler 4 | 3 1 Hauler 2 | . 2 Operator 1 | . 1 Watcher 3 | . 3 Swarmer 6 | . 6 Grunt 8 | . 8 Subdweller 1 | . 1 Best Kill Streak 4 | 3 4 Combat Bots Only 3 | . 3 Max Kills in Single Turn 1 | 1 1 Gunslinging . | . . Exploded . | . . Melee . | . . Uniques/NPCs Destroyed . | . . Combat | -11 -10 -------- Run | Yrd Mat Hostile Shots Fired 70 | . 70 Missed 22 | . 22 Hits 48 | . 48 Projectile 48 | . 48 Damage Taken 596 | . 596 Core 257 | . 257 Absorbed by Shields . | . . Core Remaining (%) 100 | 100 . Volleys Fired 75 | 4 71 Largest 2 | 2 2 Hottest 100 | 80 100 Shots Fired 151 | 8 143 Gun 151 | 8 143 Cannon . | . . Launcher . | . . Special . | . . Kinetic . | . . Thermal 151 | 8 143 Explosive . | . . Electromagnetic . | . . Robot Hit Streak 13 | 2 13 Robot Miss Streak 3 | 1 3 Penetration Max . | . . Secondary Targets 2 | . 2 Max Gunslinging Chain 1 | . 1 Shots Hit Robots 102 | 4 98 Core Hits 41 | 3 38 Critical Kills . | . . Critical Parts Destroyed . | . . Critical Strikes 8 | . 8 Burn 8 | . 8 Melee Attacks . | . . Impact . | . . Slashing . | . . Piercing . | . . Sneak Attacks . | . . Combat Hostiles . | . . Follow-up Attacks . | . . Damage Inflicted 1264 | 44 1220 Guns 1264 | 44 1220 Cannons . | . . Explosions . | . . Melee . | . . Ramming . | . . Kinetic . | . . Thermal 1264 | 44 1220 Explosive . | . . Electromagnetic . | . . Impact . | . . Slashing . | . . Piercing . | . . Highest Corruption 2 | . 2 Average Corruption 2 | . 2 Corruption Purged . | . . Corruption Blocked . | . . Effects 11 | . 11 Message Errors 3 | . 3 Matter Fused 1 | . 1 Heat Flow Errors 2 | . 2 Energy Discharges 1 | . 1 Data Loss (minor) 3 | . 3 Misfires 1 | . 1 Overload Shots . | . . Overflow Damage . | . . Projectiles . | . . Explosions . | . . Melee . | . . Knockbacks . | . . Impact . | . . Kinetic . | . . Secondary . | . . Self-Inflicted Damage . | . . Shots . | . . Rammed . | . . Targets Rammed . | . . Kicked . | . . Crushed . | . . Highest Temperature 222 | 36 222 Average Temperature 54 | 20 56 Received Heat Transfer 144 | . 144 Siege Activations . | . . Martial Activations . | . . Shielding Activations . | . . Robots Disrupted . | . . Combat Hostiles . | . . Robots Corrupted . | . . Combat Hostiles . | . . Parts Fried . | . . Impact Corruptions . | . . Robots Melted . | . . Combat Hostiles . | . . Parts Melted 19 | . 19 Heat Transferred 4235 | 100 4135 Parts Sabotaged . | . . Parts Stolen . | . . Parts Stripped . | . . Power Chain Reactions . | . . Alert | -11 -10 ------- Run | Yrd Mat Maximum Alert Level 1 | . 1 Low Security (%) 99 | 100 99 Level 1 . | . . Level 2 . | . . Level 3 . | . . Level 4 . | . . Level 5 . | . . High Security . | . . Max Security . | . . Peak Influence 209 | 5 209 Initial 3 | . 3 Average 35 | 1 38 Influence Increases 503 | 15 488 Destroy 0b10 Robot/C 280 | . 280 Destroy 0b10 Robot/NC 50 | 15 35 Destroy Leader 70 | . 70 Successful Hack 27 | . 27 Select Force Hacks 30 | . 30 Destroy Structure 1 | . 1 Lose Combat Pursuer 45 | . 45 Influence Decreases 304 | 10 294 Entered New Map 2 | . 2 Time Decay 282 | 10 272 Lost Part 20 | . 20 Squads Dispatched 4 | . 4 Investigation 3 | . 3 Extermination . | . . Reinforcement 1 | . 1 Assault . | . . Garrison . | . . Intercept . | . . Searches Triggered . | . . Construction Impeded . | . . Haulers Reinforced . | . . Active Scanning Responses . | . . Cargo Convoy Interrupts . | . . Stealth | -11 -10 --------- Run | Yrd Mat Distress Signals . | . . Communications Jammed . | . . Distress Signals . | . . Times Spotted 29 | . 29 Peak Tracking Total 3 | . 3 Tactical Retreats 3 | . 3 Traps | -11 -10 ------- Run | Yrd Mat Traps Triggered 1 | . 1 Indirectly . | . . Trap Hack Attempts . | . . Triggered . | . . Disarmed . | . . Reprogrammed . | . . Reused . | . . Traps Extracted . | . . Installed . | . . Triggered . | . . Machines | -11 -10 ---------- Run | Yrd Mat Machines Disabled . | . . Max in Single Turn . | . . Machines Repaired . | . . Machines Dismantled . | . . Machines Sabotaged . | . . Overloaded Fab Kills . | . . Hacking | -11 -10 --------- Run | Yrd Mat Machines Accessed 6 | . 6 Terminals 5 | . 5 Fabricators . | . . Repair Stations . | . . Recycling Units 1 | . 1 Scanalyzers . | . . Garrison Access . | . . Total Hacks 18 | . 18 Successful 15 | . 15 Failed 3 | . 3 Catastrophic 1 | . 1 Database Lockouts . | . . Manual 11 | . 11 Terminals 16 | . 16 Fabricators . | . . Repair Stations . | . . Recycling Units 2 | . 2 Scanalyzers . | . . Garrison Access . | . . Terminal Hacks 6 | . 6 Prototype ID Bank 2 | . 2 Terminal Index 1 | . 1 Locate Traps 2 | . 2 Hauler Manifests 1 | . 1 Fabricator Hacks . | . . Repair Station Hacks . | . . Recycling Unit Hacks 1 | . 1 Report Inventory 1 | . 1 Scanalyzer . | . . Garrison Access Hacks . | . . Unauthorized Hacks 8 | . 8 Terminals 7 | . 7 Botnet 1 | . 1 Operators 1 | . 1 Skim 4 | . 4 Search 1 | . 1 Fabricators . | . . Repair Stations . | . . Recycling Units 1 | . 1 Tunnel 1 | . 1 Scanalyzers . | . . Garrison Access . | . . Data Cores Recovered . | . . Used . | . . Hacking Detections 5 | . 5 Full Trace Events . | . . Feedback Events . | . . Feedback Blocked . | . . Robot Schematics Acquired . | . . Robots Built . | . . Authchips . | . . Time . | . . Total Robot Build Rating . | . . Part Schematics Acquired . | . . Parts Built . | . . Authchips . | . . Time . | . . Total Part Build Rating . | . . Part Studies Acquired . | . . Parts Repaired . | . . Time . | . . Parts Recycled . | . . Recycled Matter . | . . Retrieved Matter . | . . Retrieved Components . | . . Parts Scanalyzed . | . . Part Schematics Acquired . | . . Parts Damaged . | . . Bothacking | -11 -10 ------------ Run | Yrd Mat Used RIF Installer . | . . Robots Hacked . | . . Non-combat . | . . Combat . | . . Robot Hacks Applied . | . . Relay Couplers Released . | . . Fabnet Peak Effective % . | . . Robots Rewired . | . . Allies Hacked . | . . Hacks Repelled . | . . Allies | -11 -10 -------- Run | Yrd Mat Total Allies . | . . Largest Group . | . . Highest-Rated Group . | . . Highest-Rated Ally . | . . Total Orders . | . . Ally Attacks . | . . Total Damage . | . . Kills . | . . Allies Corrupted . | . . Allies Melted . | . . Intel | -11 -10 ------- Run | Yrd Mat Active Infowar (turns) 752 | 8 744 Seismic 752 | 8 744 Robot Analysis Total . | . . Derelict Logs Recovered . | . . Drone Launches . | . . Drone Recoveries . | . . Exploration | -11 -10 ------------- Run | Yrd Mat Turns Passed 1014 | 78 936 Spaces Moved 602 | 53 549 Core 1 | 1 . Treads . | . . Legs . | . . Wheels 601 | 52 549 Hover . | . . Flight . | . . Fastest Speed 50 | 50 80 Average Speed 93 | 79 94 Slowest Speed 95 | 80 95 Overloaded Moves . | . . Propulsion Burnouts . | . . Robots Hopped . | . . Potential Cave-ins . | . . Cave-ins Triggered . | . . Exploration Rate (%) 27 | 4 51 Regions Visited 1 Branch Regions . Pre-discovered Areas 1 | . 1 Known Exits Taken . | . . Unknown Exits Taken 1 | 1 . Scrap Searched . | . . Spaces Dug . | . . Terrain Destroyed . | . . Melee . | . . Projectile . | . . AOE . | . . Terrain Rammed . | . . Walls Destroyed . | . . Machines Disabled . | . . Actions | -11 -10 --------- Run | Yrd Mat Total 902 | 77 825 Wait 178 | 4 174 Move 601 | 52 549 Hop . | . . Pick Up 21 | 9 12 Fast Attach 9 | 7 2 Attach 2 | . 2 Detach 2 | . 2 Swap 5 | . 5 Drop 9 | 1 8 Fire 75 | 4 71 Melee . | . . Ram . | . . Kick . | . . Crush . | . . Escape Stasis . | . . Rewire . | . . Trap . | . . Miscellaneous . | . . Route ------- -11/Scrapyard -10/Materials (discovered 2 exits: [*Mat] / [*Min]) History --------- Turn | Location | Event 23 | -11/Scrapyard | Discovered new exit (range 15) 79 | -11/Scrapyard | Entered Materials 184 | -10/Materials | Discovered new exit (range 7) 307 | -10/Materials | Build established: Mutant 658 | -10/Materials | Discovered new exit (range 14) 679 | -10/Materials | Derelicts attacked the area 782 | -10/Materials | Core integrity fell below 50% 875 | -10/Materials | Core integrity fell below 20% 1015 | -10/Materials | Destroyed by S-10 Pest with Light Assault Rifle Last Messages --------------- 00891_ Acquired Battle Rifle. 00892_ Acquired 15 matter. 00895_ Acquired 5 matter. 00905_ O-16 Technician suffers critical hit (Burn). 00936_ Destroyed Hover Unit. 00942_ O-16 Technician destroyed. 00952_ System corrupted: Matter fused (-8). 00956_ Acquired 8 matter. 00972_ GLCAA|WQ YH,&0HEVD/BCC 00976_ K-01 Serf collects debris. 00987_ S-10 Pest destroyed. 00990_ K-01 Serf collects debris. 00993_ S-10 Pest destroyed. 00993_ Switching to secondary target: S-10 Pest. 00994_ K-01 Serf collects debris. 00996_ Flight Unit melted. 00996_ S-10 Pest destroyed. 00997_ K-01 Serf collects debris. 01011_ T-07 Excavator destroyed. 01014_ Med. Laser destroyed. Map ----- +----------------------------------------------------+ | ?????????????????????????####????????????????????# | | ????????????????????????? +???????????????????# | | ?????????????????????????# #???????????????????# | | ?????????????????????????# #???????????????????# | | ?????????????????????????# #???????????????????# | | ?????????????????????????# #???????????????????# | | ?????????????????????????# #??????????#???????## | | ????????????????????????## ##??????? #&& ???# | | ????????????????????????# ######" +%& ????#! | | ????????????????????????# #???????#! | | ????????????????????????# #???????#! | | ????????????????????????# #???????# | | ????????????????????????# #"############????## | | ??????????????????#########+####### ####### | | ??????????????????? + [ # """ + | | ????????????????????# """ """ # "R # | | ????????????????????# """ """ / """ ## #### | | ????????????????????#!! """ """ # ## #?## | | ????????????????????#!! * ########### #?# | | ????????????????????#!! ==%= ###########+### | | ????????????????????######+######+# # # | | ????????????????????????#=&%#####%#["""" # # | | ????????????????????????# %=!=* %+ """" # # | | ????????????????????????# &[####### """" # # | | ????????????????????????#=*!#?????# # # | | ?????????????# #########@ %##???######### # | | ??????????# %!*##### ##+##### | | ??????????# < *%= #?# | | ??????????# T < #?# | | ??????????###### ######=* % r % #?## | | ???????????????#???????#|%! #####" "## #### | | ???????????????????????###/###???#" !"| "## % | | ?????????????????????????"s"?????#"""""""## | | ?????????????????????????" "?????########## | | ?????????????????????????" ""?????????????# | | ????????????????????????? ?????????????# """" | | ????????????????????????? ????########### """" | | ??????????????????????????###???# """" | | ????????????????????????????? | | ????????????????????????????? | | ??????????????????????????????######### ######## | | ??????????????????????????????????????# # T # | | ??????????????????????????????????????#?# + | | ????????????^?????^?????????????????????#""" # | | ??????????????????^?????????????????????#""" # | | ????????????????^???????????????????????#""" ### | | ????????????????????????????????????????# #?? | | ????????????????????????????????????????########?? | | ?????????????????????????????????????????????????? | | ?????????????????????????????????????????????????? | +----------------------------------------------------+ Best States ------------- Heat Dissipation 35 Energy Generation 10 Energy Capacity 125 Matter Stores 300 Matter Capacity 300 Sight Range 16 Terrain Scan Density 10 Evasion (%) 44 Item Schematics ----------------- None Robot Schematics ------------------ None Fabricated ------------ Nothing Repaired ---------- Nothing Studied --------- None Alien Tech Used ----------------- None Achievements -------------- None Challenges ------------ None Game ------ Seed CoilInterceptArmor Manual? 0 Play Time 00:14:03 Cumulative 46.2 hours Start 2026.01.12 @ 01:40:48 End 2026.01.12 @ 01:52:11 Sessions 1 Manual Loads 0 Difficulty Rogue Special Mode None Game No. 44 Rogue 44 Adventurer 0 Explorer 0 Win Type - Total 0 Types 0/0/0/0/0/0/0/0/0/0 Lore% 45 Gallery% 40 Achievement% 35 Wizard Run 0 Options --------- Layout 1 ASCII 0 Keyboard 0 Movement Mouse Keybinds 0 Fullscreen 1 Font 20/SmallcapsGlow Map View 54x42 Zoom Use 0% Tactical HUD 1 Map Filters NONE Filters NONE Steam 0 RUN: 5e2b8423-bba9-4a3c-885b-28cb1476db2f